Cogmind - Beta 10.2 @@@ ROGUE MODE // 2020.12.02 @ 19:50:09 Player: kerapace Result: Destroyed by H-66 Slayer with Gauss Rifle Performance ------------- Evolutions (3) 1500 Regions Visited (11) 2200 Robots Destroyed (88) 440 Value Destroyed (3025) 3025 Prototype IDs (18) 360 Alien Tech Used (0) 0 Bonus (2311) 2311 TOTAL SCORE: 9836 Bonus ------- High Alert Combat Kills 100 Follower Combat Kills 276 Destroyed Z-Imprinter 1000 Triggered Deep Caves Wall 500 Exposed GOLEM Chamber 500 Friendly Fire -65 Cogmind --------- Core Integrity 0/700 Matter 245/300 Energy 80/100 System Corruption 0% Temperature Cool (0) Movement Flying (242) Ox3 Location -6/Proximity Caves Parts ------- > --- POWER (1) -------- (None) > --- PROPULSION (3) --- Improved VTOL Module Improved VTOL Module > --- UTILITY (7) ------ Experimental Heat Sink Large Storage Unit Large Storage Unit Advanced Targeting Computer Improved Medium Armor Plating GOLEM Unit > --- WEAPON (2) ------- (None) > --- INVENTORY (16) --- Zionite Biocell (1000) Zionite Metafield Generator Advanced Reaction Control System Zionite Weapon Casing Zionite Weapon Casing Zionite Weapon Casing GOLEM Unit Improved EM Pulse Cannon Rocket Launcher CR-A16's Pointy Stick Peak State ------------ > --- POWER ------------ Zionite Light DM Reactor > --- PROPULSION ------- Zionite Glidesys I Zionite Glidesys I Zionite Glidesys I > --- UTILITY ---------- Experimental Heat Sink Large Storage Unit Large Storage Unit Advanced Targeting Computer Advanced Reaction Control System Zionite Light Carapace Improved Medium Armor Plating > --- WEAPON ----------- EM Pulse Cannon Improved EM Pulse Cannon > --- INVENTORY -------- Improved VTOL Module Improved VTOL Module Zionite Biocell Zionite Biocell Zionite Biocell Zionite Metafield Generator Weapon Cycler Zionite Weapon Casing Zionite Weapon Casing GOLEM Unit Plasma Cannon Rocket Launcher Missile Launcher CR-A16's Pointy Stick [Rating: 72] Favorites ----------- Power Heavy Deuterium Engine Engine Heavy Deuterium Engine Power Core Nuclear Core Reactor Zionite Light DM Reactor Propulsion Medium Treads Treads Medium Treads Leg Improved Titanium Leg Wheel Compact Wheel Hover Unit Zionite Glidesys I Flight Unit Improved VTOL Module Utility Large Storage Unit Device Improved Cooling System Storage Large Storage Unit Processor Advanced Targeting Computer Protection Improved Medium Armor Plating Weapon Gatling Laser Energy Gun Gatling Laser Energy Cannon EM Pulse Cannon Ballistic Gun Flak Gun Launcher Missile Launcher Piercing Weapon CR-A16's Pointy Stick Build | -11 -10 -10 -10 -9 -8 -7 -7 -7 -7 -7 -6 ------- Run | Scr Mat Min Exi Min Mat Fac Low Low Zio Dee Pro Slots Evolved 6 | . . . . . 4 2 . . . . . Power . | . . . . . . . . . . . . Propulsion 1 | . . . . . 1 . . . . . . Utility 5 | . . . . . 3 2 . . . . . Weapon . | . . . . . . . . . . . . Parts Attached 149 | 7 1 . 2 . 33 28 4 14 17 37 6 Power 11 | 1 . . . . 5 2 . 1 1 1 . Engine 9 | 1 . . . . 4 2 . 1 1 . . Core 1 | . . . . . 1 . . . . . . Reactor 1 | . . . . . . . . . . 1 . Propulsion 38 | 2 . . . . 8 4 2 4 7 9 2 Treads 8 | 1 . . . . 4 2 . 1 . . . Leg 9 | . . . . . . . 2 2 5 . . Wheel 7 | 1 . . . . 3 2 . 1 . . . Hover 9 | . . . . . . . . . . 9 . Flight 5 | . . . . . 1 . . . 2 . 2 Utility 49 | 1 . . 2 . 8 10 1 2 6 16 3 Device 16 | . . . . . 6 2 . 1 1 4 2 Storage 8 | 1 . . 2 . . . . . 2 2 1 Processor 7 | . . . . . 1 5 . . 1 . . Hackware . | . . . . . . . . . . . . Protection 18 | . . . . . 1 3 1 1 2 10 . Artifact . | . . . . . . . . . . . . Weapon 51 | 3 1 . . . 12 12 1 7 3 11 1 Energy Gun 29 | 1 1 . . . 9 10 1 2 2 3 . Energy Cannon 7 | . . . . . 2 1 . . . 3 1 Ballistic Gun 9 | 2 . . . . . 1 . 2 . 4 . Ballistic Cannon . | . . . . . . . . . . . . Launcher 4 | . . . . . 1 . . 3 . . . Special Weapon . | . . . . . . . . . . . . Impact Weapon . | . . . . . . . . . . . . Slashing Weapon . | . . . . . . . . . . . . Piercing Weapon 2 | . . . . . . . . . 1 1 . Special Melee Weapon . | . . . . . . . . . . . . Unidentified Prototypes 17 | . . . . . 5 3 . . . 9 . Parts Lost 27 | . . . . . 7 2 . 1 . 12 5 Power 2 | . . . . . 1 . . . . 1 . Propulsion 11 | . . . . . 2 . . 1 . 5 3 Utility 6 | . . . . . 1 . . . . 3 2 Weapon 8 | . . . . . 3 2 . . . 3 . Highest Loss Streak 4 | . . . . . 3 1 . 1 . 4 3 Average Slot Usage (%) 92 | . 85 85 95 100 95 98 100 94 80 90 91 Engine 6 | . 14 14 14 14 5 6 7 7 5 3 . Treads 7 | . 14 14 14 14 17 15 5 1 . . . Leg 7 | . . . . . . . 9 17 18 5 . Wheel 4 | . 14 14 14 14 7 6 7 2 . . . Hover 2 | . . . . . . . . . . 14 17 Device 8 | . . . . . 18 11 7 8 5 7 7 Storage 15 | . 14 14 23 28 18 15 15 15 12 15 23 Processor 13 | . . . . . 3 18 23 17 15 13 7 Protection 5 | . . . . . 3 6 7 6 5 9 11 Energy Gun 9 | . 7 14 14 14 15 13 15 9 1 2 . Energy Cannon 1 | . . . . . 1 . . . . 7 15 Ballistic Gun 4 | . 21 14 14 14 . . . 3 10 3 . Naked Turns . | . . . . . . . . . . . . Heaviest Build 75 | 12 12 12 40 40 49 65 60 75 72 72 65 Greatest Support 84 | 10 20 20 10 20 43 56 56 50 58 84 66 Greatest Overweight (x) 4 | 1 1 1 3 3 4 4 3 3 3 2 2 Average Overweight (x) 1 | . . . 1 1 2 2 2 1 . . . Largest Inventory Capacity 16 | 6 6 6 16 16 16 16 16 16 16 16 16 Average Capacity 14 | 5 6 6 10 16 16 16 16 16 13 16 16 Most Carried 16 | 4 4 6 8 14 16 16 16 16 16 16 16 Average Carried 14 | 2 3 4 6 10 15 15 16 15 13 14 15 Final Capacity 16 | 6 6 6 16 16 16 16 16 16 16 16 16 Final Carried 16 | 3 4 6 8 14 15 16 16 15 15 16 11 Class Distribution -------------------- 48% | Mutant 32% | Scavenger-Mutant 15% | Derelict-Mutant Dominant Class ---------------- Mutant | -10/Materials Mutant | -10/Mines Mutant | -10/Exiles Mutant | -9/Mines Scavenger-Mutant | -8/Materials Mutant | -7/Factory Scavenger-Mutant | -7/Lower Caves Mutant | -7/Lower Caves Derelict-Mutant | -7/Zion Scavenger-Mutant | -7/Deep Caves Scavenger-Mutant | -6/Proximity Caves Resources | -11 -10 -10 -10 -9 -8 -7 -7 -7 -7 -7 -6 ----------- Run | Scr Mat Min Exi Min Mat Fac Low Low Zio Dee Pro Matter Collected 2163 | 209 112 15 20 38 567 300 40 178 51 633 . Remotely . | . . . . . . . . . . . . Salvage Created 4216 | . 129 98 . 117 1404 1192 156 704 . 416 . Parts 181 | . 7 7 . 8 66 49 7 19 . 18 . Haulers Intercepted 5 | . . . . . 3 2 . . . . . Recyclers Shooed 3 | . . . . . 1 2 . . . . . Parts Field Recycled . | . . . . . . . . . . . . Retrieved Matter . | . . . . . . . . . . . . Parts Self-Destructed 28 | . . . . . . . 13 15 . . . Prevented . | . . . . . . . . . . . . Kills | -11 -10 -10 -10 -9 -8 -7 -7 -7 -7 -7 -6 ------- Run | Scr Mat Min Exi Min Mat Fac Low Low Zio Dee Pro Combat Hostiles Destroyed 69 | . 3 5 . 2 24 11 3 14 . 7 . Guns 46 | . 3 5 . 2 17 9 3 2 . 5 . Cannons 3 | . . . . . 3 . . . . . . AOE 15 | . . . . . 4 . . 11 . . . Classes Destroyed 14 | . 1 2 . 1 6 2 . . . 2 . Worker 4 | . . . . . 1 3 . . . . . Tunneler 1 | . . . . 1 . . . . . . . Hauler 5 | . . . . . 3 2 . . . . . Recycler 8 | . . . . . 3 5 . . . . . Operator 2 | . . . . . 1 1 . . . . . Watcher 4 | . . . . . 3 1 . . . . . Swarmer 18 | . . 3 . . 4 2 1 8 . . . Grunt 30 | . 3 1 . 2 17 2 1 4 . . . Sentry 8 | . . . . . 3 3 1 1 . . . Hunter 2 | . . . . . . 1 . 1 . . . Programmer 3 | . . . . . . 3 . . . . . Z-Light 2 | . . . . . . . . . . 2 . Packrat 1 | . . . . . . . . 1 . . . Assembled 4 | . . 1 . . . . . . . 3 . Golem 2 | . . . . . . . . . . 2 . Best Kill Streak 7 | . 3 3 . 2 7 6 3 4 . 3 . Combat Bots Only 6 | . 3 3 . 2 6 3 3 4 . 3 . Max Kills in Single Turn 4 | . 1 1 . 1 2 2 1 4 . 1 . Gunslinging . | . . . . . . . . . . . . Exploded 4 | . . . . . 2 . . 4 . . . Melee . | . . . . . . . . . . . . Uniques/NPCs Destroyed 1 | . . . . . . . . . . 1 . Z-Imprinter (-7/Deep Caves) Combat | -11 -10 -10 -10 -9 -8 -7 -7 -7 -7 -7 -6 -------- Run | Scr Mat Min Exi Min Mat Fac Low Low Zio Dee Pro Damage Taken 5958 | . 127 58 . 29 1533 738 275 390 . 2235 573 Core 958 | . 13 14 . . 213 98 66 . . 477 77 Absorbed by Shields . | . . . . . . . . . . . . Core Remaining (%) 83 | 100 . . . 89 61 . . . . . . Volleys Fired 230 | . 13 5 . 6 94 45 7 22 . 35 3 Largest 2 | . 2 2 . 2 2 2 2 2 . 2 1 Hottest 160 | . 60 60 . 60 130 160 149 160 . 160 80 Shots Fired 413 | . 26 10 . 12 168 86 14 35 . 59 3 Gun 362 | . 26 10 . 12 146 84 14 26 . 44 . Cannon 38 | . . . . . 18 2 . . . 15 3 Launcher 13 | . . . . . 4 . . 9 . . . Special . | . . . . . . . . . . . . Kinetic 69 | . 15 5 . 6 11 2 . . . 30 . Thermal 298 | . 11 5 . 6 135 84 14 26 . 14 3 Explosive 13 | . . . . . 4 . . 9 . . . Electromagnetic 33 | . . . . . 18 . . . . 15 . Robot Hit Streak 33 | . 8 4 . 8 33 23 23 21 . 10 . Robot Miss Streak 13 | . 2 1 . 1 4 2 3 3 . 13 . Penetration Max . | . . . . . . . . . . . . Secondary Targets 6 | . 1 . . . 3 1 . . . 1 . Max Gunslinging Chain 1 | . 1 . . . 1 1 . . . 1 . Shots Hit Robots 325 | . 17 6 . 9 132 72 12 28 . 49 . Core Hits 209 | . 8 5 . 6 66 45 8 34 . 37 . Critical Hits 1 | . 1 . . . . . . . . . . Critical Kills . | . . . . . . . . . . . . Critical Parts Destroyed 1 | . 1 . . . . . . . . . . Melee Attacks 20 | . . . . . . . . . 20 . . Impact . | . . . . . . . . . . . . Slashing . | . . . . . . . . . . . . Piercing 20 | . . . . . . . . . 20 . . Sneak Attacks . | . . . . . . . . . . . . Combat Hostiles . | . . . . . . . . . . . . Follow-up Attacks . | . . . . . . . . . . . . Damage Inflicted 7206 | . 216 103 . 113 2779 1569 268 1380 . 778 . Guns 5304 | . 216 103 . 113 1922 1569 268 556 . 557 . Cannons 569 | . . . . . 348 . . . . 221 . Explosions 1333 | . . . . . 509 . . 824 . . . Melee . | . . . . . . . . . . . . Ramming . | . . . . . . . . . . . . Kinetic 753 | . 128 50 . 54 94 50 . . . 377 . Thermal 4729 | . 88 53 . 59 2006 1519 268 556 . 180 . Explosive 1155 | . . . . . 331 . . 824 . . . Electromagnetic 569 | . . . . . 348 . . . . 221 . Impact . | . . . . . . . . . . . . Slashing . | . . . . . . . . . . . . Piercing . | . . . . . . . . . . . . Highest Corruption 1 | . . . . . . 1 1 1 1 . . Average Corruption 1 | . . . . . . 1 1 1 1 . . Corruption Purged . | . . . . . . . . . . . . Effects 9 | . . . . . . 3 2 4 . . . Message Errors 2 | . . . . . . 1 1 . . . . Energy Discharges 3 | . . . . . . 1 . 2 . . . Data Loss (minor) 4 | . . . . . . 1 1 2 . . . Overload Shots . | . . . . . . . . . . . . Overflow Damage 10 | . . . . . 3 . . 7 . . . Projectiles . | . . . . . . . . . . . . Explosions 10 | . . . . . 3 . . 7 . . . Melee . | . . . . . . . . . . . . Knockbacks . | . . . . . . . . . . . . Impact . | . . . . . . . . . . . . Kinetic . | . . . . . . . . . . . . Secondary . | . . . . . . . . . . . . Self-Inflicted Damage 55 | . . . . . 28 . . 27 . . . Shots 3 | . . . . . 2 . . 1 . . . Rammed . | . . . . . . . . . . . . Targets Rammed . | . . . . . . . . . . . . Kicked . | . . . . . . . . . . . . Crushed . | . . . . . . . . . . . . Highest Temperature 128 | . 45 20 . 18 18 36 21 128 . 91 12 Average Temperature 20 | . 18 17 . 14 6 7 15 33 . 38 7 Received Heat Transfer 1552 | . 72 . . 18 717 99 69 24 . 511 42 Siege Activations . | . . . . . . . . . . . . Robots Corrupted 2 | . . . . . . . . . . 2 . Combat Hostiles 2 | . . . . . . . . . . 2 . Parts Fried 3 | . . . . . 3 . . . . . . Impact Corruptions . | . . . . . . . . . . . . Robots Melted 3 | . . . . . . 2 . 1 . . . Combat Hostiles 3 | . . . . . . 2 . 1 . . . Parts Melted 27 | . . . . . 5 15 3 4 . . . Heat Transferred 9676 | . 200 125 . 125 4061 3133 572 1250 . 210 . Parts Sabotaged . | . . . . . . . . . . . . Parts Stolen . | . . . . . . . . . . . . Parts Stripped . | . . . . . . . . . . . . Power Chain Reactions . | . . . . . . . . . . . . Missiles Intercepted . | . . . . . . . . . . . . Alert | -11 -10 -10 -10 -9 -8 -7 -7 -7 -7 -7 -6 ------- Run | Scr Mat Min Exi Min Mat Fac Low Low Zio Dee Pro Peak Influence 499 | . 100 129 . 86 499 259 . . . . . Initial 175 | . . 39 . . 33 175 . . . . . Average 152 | . 42 74 . 24 342 107 . . . . . Maximum Alert Level 2 | . . . . . 2 1 . . . . . Low Security (%) 71 | 100 100 100 . 100 15 86 . . . . . Level 1 19 | . . . . . 51 13 . . . . . Level 2 8 | . . . . . 33 . . . . . . Level 3 . | . . . . . . . . . . . . Level 4 . | . . . . . . . . . . . . Level 5 . | . . . . . . . . . . . . High Security . | . . . . . . . . . . . . Max Security . | . . . . . . . . . . . . Squads Dispatched 9 | . 1 . . . 4 4 . . . . . Investigation 3 | . . . . . 3 . . . . . . Extermination 3 | . . . . . . 3 . . . . . Reinforcement 2 | . 1 . . . 1 . . . . . . Assault . | . . . . . . . . . . . . Garrison 1 | . . . . . . 1 . . . . . Intercept . | . . . . . . . . . . . . Construction Impeded . | . . . . . . . . . . . . Haulers Reinforced . | . . . . . . . . . . . . Stealth | -11 -10 -10 -10 -9 -8 -7 -7 -7 -7 -7 -6 --------- Run | Scr Mat Min Exi Min Mat Fac Low Low Zio Dee Pro Distress Signals 6 | . 3 . . . 2 1 . . . . . Communications Jammed . | . . . . . . . . . . . . Distress Signals . | . . . . . . . . . . . . Times Spotted 126 | . 9 22 . 3 38 19 3 14 . 15 3 Peak Tracking Total 14 | . 4 14 . 3 7 4 3 4 . 6 3 Tactical Retreats 3 | . . 2 . . . . . . . 1 . Traps | -11 -10 -10 -10 -9 -8 -7 -7 -7 -7 -7 -6 ------- Run | Scr Mat Min Exi Min Mat Fac Low Low Zio Dee Pro Traps Triggered 4 | . . . . . 2 2 . . . . . Indirectly . | . . . . . . . . . . . . Trap Hack Attempts . | . . . . . . . . . . . . Triggered . | . . . . . . . . . . . . Disarmed . | . . . . . . . . . . . . Reprogrammed . | . . . . . . . . . . . . Reused . | . . . . . . . . . . . . Traps Extracted . | . . . . . . . . . . . . Installed . | . . . . . . . . . . . . Triggered 3 | . . . . . . . . . . . 3 Machines | -11 -10 -10 -10 -9 -8 -7 -7 -7 -7 -7 -6 ---------- Run | Scr Mat Min Exi Min Mat Fac Low Low Zio Dee Pro Machines Disabled 8 | . . . . . 4 . . . . 4 . Max in Single Turn 2 | . . . . . 2 . . . . 1 . Garrison Access 1 | . . . . . 1 . . . . . . Machines Sabotaged . | . . . . . . . . . . . . Garrisons Compromised . | . . . . . . . . . . . . Overloaded Fab Kills . | . . . . . . . . . . . . Fab Network Shutdowns . | . . . . . . . . . . . . Hacking | -11 -10 -10 -10 -9 -8 -7 -7 -7 -7 -7 -6 --------- Run | Scr Mat Min Exi Min Mat Fac Low Low Zio Dee Pro Machines Accessed 14 | . 1 . 1 1 5 5 . 1 . . . Terminals 7 | . 1 . . . 3 3 . . . . . Fabricators . | . . . . . . . . . . . . Repair Stations 1 | . . . . . . 1 . . . . . Recycling Units . | . . . . . . . . . . . . Scanalyzers 1 | . . . . . 1 . . . . . . Garrison Access 2 | . . . . . 1 1 . . . . . Total Hacks 22 | . 1 . 1 1 9 9 . 1 . . . Successful 12 | . 1 . 1 1 5 3 . 1 . . . Failed 10 | . . . . . 4 6 . . . . . Catastrophic 3 | . . . . . . 3 . . . . . Database Lockouts . | . . . . . . . . . . . . Manual 1 | . . . . . . 1 . . . . . Terminals 10 | . 1 . . . 5 4 . . . . . Fabricators . | . . . . . . . . . . . . Repair Stations 3 | . . . . . . 3 . . . . . Recycling Units . | . . . . . . . . . . . . Scanalyzers 3 | . . . . . 3 . . . . . . Garrison Access 3 | . . . . . 1 2 . . . . . Terminal Hacks 8 | . 1 . 1 1 3 1 . 1 . . . Record 2 | . . . 1 . . . . 1 . . . Prototype ID Bank 1 | . . . . . 1 . . . . . . Open Door 1 | . . . . 1 . . . . . . . Branch Access Points 1 | . . . . . . 1 . . . . . Unreport Threat 1 | . . . . . 1 . . . . . . Hauler Manifests 2 | . 1 . . . 1 . . . . . . Fabricator Hacks . | . . . . . . . . . . . . Repair Station Hacks 2 | . . . . . . 2 . . . . . Scan Component 1 | . . . . . . 1 . . . . . Repair 1 | . . . . . . 1 . . . . . Recycling Unit Hacks . | . . . . . . . . . . . . Scanalyzer 1 | . . . . . 1 . . . . . . Insert Component 1 | . . . . . 1 . . . . . . Garrison Access Hacks 1 | . . . . . 1 . . . . . . Seal Access 1 | . . . . . 1 . . . . . . Unauthorized Hacks . | . . . . . . . . . . . . Terminals . | . . . . . . . . . . . . Fabricators . | . . . . . . . . . . . . Repair Stations . | . . . . . . . . . . . . Recycling Units . | . . . . . . . . . . . . Scanalyzers . | . . . . . . . . . . . . Garrison Access . | . . . . . . . . . . . . Data Cores Recovered 1 | . . . . . . 1 . . . . . Used . | . . . . . . . . . . . . Hacking Detections 7 | . . . . . 3 4 . . . . . Full Trace Events 1 | . . . . . 1 . . . . . . Feedback Events . | . . . . . . . . . . . . Feedback Blocked . | . . . . . . . . . . . . Robot Schematics Acquired . | . . . . . . . . . . . . Robots Built . | . . . . . . . . . . . . Matter . | . . . . . . . . . . . . Time . | . . . . . . . . . . . . Total Robot Build Rating . | . . . . . . . . . . . . Part Schematics Acquired . | . . . . . . . . . . . . Parts Built . | . . . . . . . . . . . . Matter . | . . . . . . . . . . . . Time . | . . . . . . . . . . . . Total Part Build Rating . | . . . . . . . . . . . . Parts Repaired 1 | . . . . . . 1 . . . . . Time 22 | . . . . . . 22 . . . . . Parts Recycled . | . . . . . . . . . . . . Recycled Matter . | . . . . . . . . . . . . Retrieved Matter . | . . . . . . . . . . . . Retrieved Components . | . . . . . . . . . . . . Parts Scanalyzed 1 | . . . . . 1 . . . . . . Part Schematics Acquired . | . . . . . . . . . . . . Parts Damaged . | . . . . . . . . . . . . Bothacking | -11 -10 -10 -10 -9 -8 -7 -7 -7 -7 -7 -6 ------------ Run | Scr Mat Min Exi Min Mat Fac Low Low Zio Dee Pro Used RIF Installer . | . . . . . . . . . . . . Robots Hacked . | . . . . . . . . . . . . Non-combat . | . . . . . . . . . . . . Combat . | . . . . . . . . . . . . Robot Hacks Applied . | . . . . . . . . . . . . Relay Couplers Released . | . . . . . . . . . . . . Robots Rewired . | . . . . . . . . . . . . Allies Hacked . | . . . . . . . . . . . . Hacks Repelled . | . . . . . . . . . . . . Allies | -11 -10 -10 -10 -9 -8 -7 -7 -7 -7 -7 -6 -------- Run | Scr Mat Min Exi Min Mat Fac Low Low Zio Dee Pro Total Allies 4 | . . . . 3 . . . . . 1 . Largest Group 3 | . . . . 3 3 . . . . 1 . Highest-Rated Group 118 | . . . . 40 40 . . . . 118 . Highest-Rated Ally 118 | . . . . 16 16 . . . . 118 . Total Orders . | . . . . . . . . . . . . Ally Attacks 75 | . . . . 8 30 . . . . 37 . Total Damage 3091 | . . . . 106 238 . . . . 2747 . Kills 18 | . . . . 1 5 . . . . 12 . Allies Corrupted . | . . . . . . . . . . . . Allies Melted . | . . . . . . . . . . . . Intel | -11 -10 -10 -10 -9 -8 -7 -7 -7 -7 -7 -6 ------- Run | Scr Mat Min Exi Min Mat Fac Low Low Zio Dee Pro Robot Analysis Total . | . . . . . . . . . . . . Derelict Logs Recovered 8 | . . 3 . 2 . . . 1 2 . . Drone Launches . | . . . . . . . . . . . . Drone Recoveries . | . . . . . . . . . . . . Exploration | -11 -10 -10 -10 -9 -8 -7 -7 -7 -7 -7 -6 ------------- Run | Scr Mat Min Exi Min Mat Fac Low Low Zio Dee Pro Turns Passed 8238 | 56 138 315 183 323 872 1673 887 1066 1454 1149 122 Spaces Moved 5863 | 52 91 210 182 188 355 1071 658 616 1095 1222 123 Core 7 | 3 . . . . . . . . 4 . . Treads 572 | . 22 154 . 134 150 105 7 . . . . Legs 1316 | . . . . . . . . 420 745 151 . Wheels 2428 | 49 69 56 182 54 205 966 651 196 . . . Hover 1194 | . . . . . . . . . . 1071 123 Flight 346 | . . . . . . . . . 346 . . Fastest Speed 32 | 50 90 90 90 110 110 120 130 130 32 52 52 Average Speed 119 | 82 106 141 98 159 145 134 130 155 117 75 87 Slowest Speed 210 | 90 160 160 110 180 200 180 180 185 210 200 170 Overloaded Moves . | . . . . . . . . . . . . Propulsion Burnouts . | . . . . . . . . . . . . Robots Hopped . | . . . . . . . . . . . . Cave-ins Triggered . | . . . . . . . . . . . . Exploration Rate (%) 49 | 3 33 52 53 50 44 32 71 78 83 72 19 Regions Visited 11 Branch Regions 8 Pre-discovered Areas 5 | . . 1 1 1 . . . . 2 . . Known Exits Taken 2 | . . . . . 1 1 . . . . . Unknown Exits Taken 9 | 1 1 1 1 1 . . 1 1 1 1 . Scrap Searched 10 | . . 1 . 2 . . 1 4 2 . . Spaces Dug 11 | . . . . . . 2 . 6 3 . . Terrain Destroyed 105 | . . . . . 42 2 . 58 3 . . Melee 3 | . . . . . . . . . 3 . . Projectile 2 | . . . . . . 2 . . . . . AOE 100 | . . . . . 42 . . 58 . . . Terrain Rammed . | . . . . . . . . . . . . Walls Destroyed . | . . . . . . . . . . . . Machines Disabled . | . . . . . . . . . . . . Actions | -11 -10 -10 -10 -9 -8 -7 -7 -7 -7 -7 -6 --------- Run | Scr Mat Min Exi Min Mat Fac Low Low Zio Dee Pro Total 6637 | 62 106 218 184 199 549 1218 670 690 1224 1380 137 Wait 184 | . 1 2 . 1 24 22 . 15 59 60 . Move 5852 | 51 90 209 181 187 354 1070 657 615 1094 1221 123 Hop . | . . . . . . . . . . . . Pick Up 83 | 4 1 2 1 5 15 21 . 9 18 7 . Fast Attach 71 | 5 . . 1 . 14 13 2 6 9 21 . Attach 26 | 1 . . . . 5 3 . 1 6 5 5 Detach 8 | . . . . . 3 . . . 1 3 1 Swap 53 | 1 1 . 1 . 14 13 2 7 2 11 1 Drop 110 | . . . . . 26 31 2 15 15 17 4 Fire 230 | . 13 5 . 6 94 45 7 22 . 35 3 Melee 20 | . . . . . . . . . 20 . . Ram . | . . . . . . . . . . . . Kick . | . . . . . . . . . . . . Crush . | . . . . . . . . . . . . Escape Stasis . | . . . . . . . . . . . . Rewire . | . . . . . . . . . . . . Trap . | . . . . . . . . . . . . Miscellaneous . | . . . . . . . . . . . . Route ------- -11/Scrapyard -10/Materials -10/Mines (discovered 2 exits: [*Mat] / *Exi) -10/Exiles (discovered 2 exits: *Min x2) -9/Mines (discovered 2 exits: *Mat x2) -8/Materials -7/Factory (discovered 4 exits: *Fac x2 / *Low x2) -7/Lower Caves -7/Lower Caves (discovered 2 exits: *Fac / [*Zio]) -7/Zion (discovered 2 exits: [*Dee] / [*Pro]) -7/Deep Caves -6/Proximity Caves History --------- Turn | Location | Event 10 | -11/Scrapyard | Discovered new exit (range 16) 57 | -11/Scrapyard | Entered Materials 148 | -10/Materials | Met 8R-AWN 179 | -10/Materials | Discovered new exit (range 5) 195 | -10/Materials | Entered Mines 228 | -10/Mines | Assembled infested the area 233 | -10/Mines | Assisted by a Guerilla fighting off Assembled 274 | -10/Mines | Learned Materials terminal intel 318 | -10/Mines | Build established: Mutant 371 | -10/Mines | Discovered new exit (range 10) 376 | -10/Mines | YI-UF0 nonchalantly dropped a Grenade Launcher on the ground 449 | -10/Mines | Learned location of Zion (-7) 502 | -10/Mines | Deemed a non-threat by the Exiles lab entrance 503 | -10/Mines | Discovered new exit (range 5) 510 | -10/Mines | Entered Exiles 522 | -10/Exiles | Discovered new exit (range 15) 533 | -10/Exiles | Welcomed by 8R-AWN 549 | -10/Exiles | Met EX-HEX 592 | -10/Exiles | Met EX-DEC 679 | -10/Exiles | Discovered new exit (range 14) 693 | -10/Exiles | Entered Mines 703 | -9/Mines | Discovered new exit (range 8) 748 | -9/Mines | Assisted by bots powering up and referring to "LRC-V3" 859 | -9/Mines | Received a Rocket Launcher from a helpful Derelict 884 | -9/Mines | Learned Materials security intel 904 | -9/Mines | Learned location of Storage (-9) 961 | -9/Mines | Discovered new exit (range 8) 986 | -9/Mines | Found the Drone Emporium 995 | -9/Mines | Found Prototype Device 1016 | -9/Mines | Entered Materials 1016 | -8/Materials | Accompanied by 3 allies 1016 | -8/Materials | Evolved 4 slots: Propulsion x1, Utility x3 1016 | -8/Materials | Identified Decoy Drone Bay 1017 | -8/Materials | Identified exit to Factory 1019 | -8/Materials | Loaded intel: 12 terminal locations 1421 | -8/Materials | Build established: Scavenger-Mutant 1803 | -8/Materials | Lost 3 parts (2n1w) 1888 | -8/Materials | Entered Factory 1888 | -7/Factory | Evolved 2 slots: Utility x2 2030 | -7/Factory | Repaired Hvy. Laser 2220 | -7/Factory | Build established: Mutant 2220 | -7/Factory | Discovered new exit (range 3) 2623 | -7/Factory | Discovered new exit (range 12) 3017 | -7/Factory | Identified exit to Factory 3406 | -7/Factory | Identified exit to Lower Caves 3508 | -7/Factory | Garrison activated, responded to threat 3561 | -7/Factory | Entered Lower Caves 3563 | -7/Lower Caves | Attracted the attention of an 0b10 checkpoint 3885 | -7/Lower Caves | Encountered a Warlord checkpoint 4172 | -7/Lower Caves | Discovered new exit (range 10) 4206 | -7/Lower Caves | Build established: Scavenger-Mutant 4448 | -7/Lower Caves | Entered another Lower Caves area 4486 | -7/Lower Caves | Discovered exit to Factory (range 16) 4626 | -7/Lower Caves | Attracted the attention of an 0b10 checkpoint 4814 | -7/Lower Caves | Learned Factory trap positions 4962 | -7/Lower Caves | Build established: Mutant 5498 | -7/Lower Caves | Discovered new exit (range 10) 5514 | -7/Lower Caves | Entered Zion 5550 | -7/Zion | Build established: Scavenger-Mutant 5568 | -7/Zion | System corruption cleaned by Quarantine Array 5659 | -7/Zion | Discovered new exit (range 21) 5887 | -7/Zion | Learned Factory emergency access door positions 5910 | -7/Zion | Build established: Derelict-Mutant 6032 | -7/Zion | Learned location of Warlord (-4) 6168 | -7/Zion | Learned Factory emergency access door positions 6257 | -7/Zion | Learned location of Armory (-3) 6480 | -7/Zion | Found CR-A16's Pointy Stick 6755 | -7/Zion | Discovered new exit (range 4) 6758 | -7/Zion | Saw the warning signs outside the Deep Caves entrance 6968 | -7/Zion | Entered Deep Caves 6970 | -7/Deep Caves | Met 5H-AD0 7183 | -7/Deep Caves | Z-Facility disabled 7209 | -7/Deep Caves | Attacked by Z-Imprinter 7221 | -7/Deep Caves | Allies destroyed Z-Imprinter 7269 | -7/Deep Caves | Lost 4 parts (1n1u2w) 7272 | -7/Deep Caves | Found Prototype Protection 7272 | -7/Deep Caves | Identified Zio. Weapon Casing 7275 | -7/Deep Caves | Found Prototype Device 7275 | -7/Deep Caves | Identified Zio. Metafield Generator 7375 | -7/Deep Caves | Found Zio. Weapon Casing 7386 | -7/Deep Caves | Lost 4 parts (2n1u1w) 7435 | -7/Deep Caves | Discovered new exit (range 7) 7525 | -7/Deep Caves | Build established: Scavenger-Mutant 7564 | -7/Deep Caves | Spotted as-61099 7567 | -7/Deep Caves | Core integrity fell below 50% 7600 | -7/Deep Caves | Core integrity fell below 20% 7614 | -7/Deep Caves | Destroyed as-61099 7643 | -7/Deep Caves | Lost 4 parts (1p2n1u) 7796 | -7/Deep Caves | Found Zio. Weapon Casing 7855 | -7/Deep Caves | Exposed GOLEM chamber 7868 | -7/Deep Caves | Found GOLEM Unit 7997 | -7/Deep Caves | Found Zio. Weapon Casing 8078 | -7/Deep Caves | Found GOLEM Unit 8081 | -7/Deep Caves | Triggered Deep Caves wall 8117 | -7/Deep Caves | Entered Proximity Caves 8155 | -6/Proximity Caves | Attracted the attention of an 0b10 checkpoint 8239 | -6/Proximity Caves | Destroyed by H-66 Slayer with Gauss Rifle Last Messages --------------- 08186_ Penetrated by Slug. 08189_ Critical hit. 08189_ Zio. Light Carapace destroyed. 08189_ Slug penetrates Wall. 08198_ Penetrated by Slug. 08198_ Slug penetrates Wall. 08221_ Penetrated by Slug. 08221_ Zio. Glidesys I destroyed. 08221_ Slug penetrates Wall. 08221_ Dropped Zio. Light DM Reactor. 08224_ Penetrated by Slug. 08225_ Critical hit. 08232_ Zio. Biocell destroyed. 08232_ Penetrated by Slug. 08235_ Zio. Glidesys I destroyed. 08235_ Penetrated by Slug. 08238_ Dropped Plasma Cannon. 08238_ Dropped EM Pulse Cannon. 08239_ Dropped Zio. Biocell. 08239_ Penetrated by Slug. Map ----- +----------------------------------------------------+ | ?????????????????????????????????????????????????? | | ?????????????????????????????????????????????????? | | ?????????????????????????????????????????????????? | | ?????????????????????????????????????????????????? | | ?????????????????????????????????????????????????? | | ?????????????????????????????????????????????????? | | ?????????????????????????????????????????????????? | | ?????????????????????????????????????????????????? | | ?????????????????????????????????????????????????? | | ?????????????????????????????????????????????????? | | ?????????????????????????????????????????????????? | | ?????????????????????????????????????????????????? | | ?????????????????????????????????????????????????? | | ?????????????????????????????????????????????????? | | ?????????????????????????????????????????????????? | | ?????????????????????????????????????????????????? | | ?????????????????????????????????????????????????? | | ??????????####???????????????????????????????????? | | ??????????# ##??????????????????????????????????? | | ??????????# ###????????????????????????????????? | | ??????????# #????????????????????????????????? | | ???###?#### #??????????########## ?????????? | | ???# ## #?????????# ?????????? | | ????# #????????## #????????? | | ??????# #??????#### #?????????? | | ##?????# ######## ]@ #??????????? | | #???## h ! #?????????????? | | #### Yh * ### ##?????????????? | | ###### #########??# ##??????????????? | | ##????# ?????????? #???????????????? | | ### ##?????# ?????????? #??????????????? | | ???# ##?????# #?????????? ?????????????? | | ??## ###???# #??????????? #???????????? | | ?## #???# ???????????? ???????????? | | ## #??? ???????????? $ ???????????? | | ##??? ???????????####????????????? | | #???? ??????????????????????????? | | ##???? #?????????????????????????? | | ###????? #?????????????????????????? | | ##??????? #?????????????????????????? | | ###???????? ???????????????????????????? | | ####?????????? ?????????????????????????????? | | ?????????????? ???????????????????????????????? | | ?????????????????????????????????????????????????? | | ?????????????????????????????????????????????????? | | ?????????????????????????????????????????????????? | | ?????????????????????????????????????????????????? | | ?????????????????????????????????????????????????? | | ?????????????????????????????????????????????????? | | ?????????????????????????????????????????????????? | +----------------------------------------------------+ Best States ------------- Heat Dissipation 73 Energy Generation 27 Energy Capacity 1100 Matter Stores 300 Matter Capacity 300 Sight Range 22 Terrain Scan Density 10 Armor Coverage 800 Weapon Shielding 100 Weapon Cycling 15 Evasion (%) 68 Targeting Accuracy 8 Recoil Reduction 4 Particle Charging 15 Salvage Targeting 4 Item Schematics ----------------- None Robot Schematics ------------------ None Fabricated ------------ Nothing Alien Tech Used ----------------- None Achievements -------------- None Challenges ------------ None Game ------ Seed CloakLinearStick Manual? 0 Play Time 01:40:54 Cumulative 406.1 hours Start 2020.12.02 @ 17:24:57 End 2020.12.02 @ 19:50:09 Sessions 1 Manual Loads 0 Difficulty Rogue Special Mode None Game No. 300 Rogue 300 Adventurer 0 Explorer 0 Win Type - Total 12 Types 11/0/0/1/0/0/0/0/0 Lore% 79 Gallery% 79 Achievement% 64 Wizard Run 0 Options --------- ASCII 0 Keyboard 0 Movement Vi Keybinds 0 Fullscreen 0 Font 16/SmallcapsGlow Map View 76x50 Tactical HUD 1 Map Filters NONE Filters NONE Steam 1 RUN: 4dd2150f-0542-4b17-9ff9-d4fcbb0fcccd